fUST/lending_fUST_20240112
["ID","MTS","AMOUNT","RATE_DAILY","PERIOD"]
[311352832,1705067441195,-500.0,0.0002219,2]
[311352835,1705067441204,-500.0,0.0002219,2]
[311352837,1705067441213,-500.0,0.0002219,2]
[311352839,1705067441223,-500.0,0.0002219,2]
[311352841,1705067441232,-500.0,0.0002219,2]
[311352843,1705067441242,-500.0,0.0002219,2]
[311352845,1705067441253,-500.0,0.0002219,2]
[311352847,1705067441262,-500.0,0.0002219,2]
[311352848,1705067441270,-500.0,0.0002219,2]
[311352850,1705067441280,-515.59759976,0.0002219,2]
[311352852,1705067441289,-500.0,0.0002219,2]
[311352855,1705067441298,-500.0,0.0002219,2]
[311352857,1705067441307,-500.0,0.0002219,2]
[311352859,1705067441316,-500.0,0.0002219,2]
[311352861,1705067441326,-500.0,0.0002219,2]
[311352862,1705067441335,-500.0,0.0002219,2]
[311352865,1705067441345,-500.0,0.0002219,2]
[311352867,1705067441354,-500.0,0.0002219,2]
[311352869,1705067441363,-500.0,0.0002219,2]
[311352871,1705067441372,-500.0,0.0002219,2]
[311352873,1705067441381,-500.0,0.0002219,2]
[311352875,1705067441390,-500.0,0.0002219,2]
[311352876,1705067441399,-1027.96,0.0002219,2]
[311352879,1705067441409,-500.0,0.0002219,2]
[311352881,1705067441418,-500.0,0.0002219,2]
[311352883,1705067441427,-500.0,0.0002219,2]
[311352885,1705067441436,-517.45998874,0.0002219,2]
[311352887,1705067441445,-500.0,0.0002219,2]
[311352889,1705067441455,-500.0,0.0002219,2]
[311352890,1705067441464,-500.0,0.0002219,2]
[311352893,1705067441479,-500.0,0.0002219,2]
[311352895,1705067441489,-500.0,0.0002219,2]
[311352897,1705067441499,-500.0,0.0002219,2]
[311352899,1705067441508,-501.81277413,0.0002219,2]
[311352901,1705067441517,-502.51546201,0.0002219,2]
[311352903,1705067441527,-504.30244962,0.0002219,2]
[311352905,1705067441537,-500.0,0.0002219,2]
[311352907,1705067441547,-500.0,0.0002219,2]
[311352909,1705067441556,-500.0,0.0002219,2]
[311352911,1705067441565,-500.0,0.0002219,2]
[311352913,1705067441575,-500.0,0.0002219,2]
[311352915,1705067441585,-500.0,0.0002219,2]
[311352917,1705067441594,-501.43113503,0.0002219,2]
[311352919,1705067441605,-248.92220758,0.0002219,2]
[311352921,1705067441615,-3384.66,0.0002219,2]
[311352923,1705067441625,-5321.51,0.0002219,2]
[311352925,1705067441634,-500.0,0.0002219,2]
[311352927,1705067441643,-969.64,0.0002219,2]
[311352929,1705067441654,-514.70488117,0.0002219,2]
[311352931,1705067441665,-500.0,0.0002219,2]
[311352933,1705067441675,-500.0,0.0002219,2]
[311352935,1705067441685,-500.0,0.00022191,2]
[311352937,1705067441694,-500.0,0.00022191,2]
[311352940,1705067441705,-500.0,0.00022191,2]
[311352942,1705067441716,-500.0,0.00022191,2]
[311352943,1705067441726,-500.0,0.00022191,2]
[311352945,1705067441736,-500.0,0.00022191,2]
[311352947,1705067441747,-500.0,0.00022191,2]
[311352950,1705067441757,-500.0,0.00022191,2]
[311352952,1705067441767,-500.0,0.00022191,2]
[311352953,1705067441777,-500.0,0.00022191,2]
[311352956,1705067441787,-607.81684016,0.00022191,2]
[311352958,1705067441800,-500.0,0.00022191,2]
[311352959,1705067441810,-500.0,0.00022191,2]
[311352962,1705067441820,-510.88740699,0.00022191,2]
[311352964,1705067441830,-500.0,0.00022191,2]
[311352966,1705067441841,-500.0,0.00022191,2]
[311352976,1705067441933,-500.0,0.00022191,2]
[311352978,1705067441943,-502.07502947,0.00022191,2]
[311352980,1705067441953,-474.38781332,0.00022191,2]
[311352982,1705067441963,-503.29988254,0.00022191,2]
[311352984,1705067441974,-580.33764453,0.00022191,2]
[311352986,1705067441983,-687.15,0.00022191,2]
[311352988,1705067441993,-500.0,0.00022191,2]
[311352990,1705067442004,-500.0,0.00022191,2]
[311352992,1705067442014,-500.0,0.00022191,2]
[311352994,1705067442023,-500.0,0.00022191,2]
[311352996,1705067442033,-503.8784956,0.00022191,2]
[311352998,1705067442043,-500.0,0.00022191,2]
[311353000,1705067442053,-624.6,0.00022191,2]
[311353002,1705067442063,-500.0,0.00022191,2]
[311353005,1705067442074,-495.43129305,0.00022191,2]
[311353006,1705067442084,-500.0,0.00022191,2]
[311353009,1705067442094,-500.0,0.00022191,2]
[311353011,1705067442104,-535.69623178,0.00022191,2]
[311353012,1705067442113,-500.0,0.00022191,2]
[311353015,1705067442126,-302.39991316,0.00022191,2]
[311353017,1705067442135,-500.0,0.00022191,2]
[311353018,1705067442145,-500.0,0.00022191,2]
[311353021,1705067442155,-500.0,0.00022191,2]
[311353023,1705067442165,-500.0,0.00022191,2]
[311353025,1705067442175,-500.0,0.00022191,2]
[311353027,1705067442184,-500.0,0.00022191,2]
[311353029,1705067442192,-504.28672125,0.00022191,2]
[311353031,1705067442202,-500.0,0.00022191,2]
[311353032,1705067442212,-500.0,0.00022191,2]
[311353035,1705067442221,-500.0,0.00022191,2]
[311353036,1705067442230,-515.79495224,0.00022191,2]
[311353039,1705067442240,-605.14027275,0.00022191,2]
[311353041,1705067442251,-500.0,0.00022191,2]
[311353043,1705067442259,-501.50194753,0.00022191,2]
[311353045,1705067442269,-500.0,0.00022191,2]
[311353046,1705067442278,-502.05991619,0.00022191,2]
[311353049,1705067442288,-500.0,0.00022191,2]
[311353050,1705067442297,-502.13157992,0.00022191,2]
[311353052,1705067442307,-404.20160165,0.00022191,2]
[311353055,1705067442316,-500.0,0.00022191,2]
[311353057,1705067442325,-500.0,0.00022191,2]
[311353059,1705067442335,-500.0,0.00022191,2]
[311353061,1705067442344,-500.0,0.00022191,2]
[311353063,1705067442354,-500.0,0.00022191,2]
[311353065,1705067442363,-500.0,0.00022191,2]
[311353067,1705067442373,-500.0,0.00022191,2]
[311353069,1705067442381,-500.0,0.00022191,2]
[311353071,1705067442391,-500.0,0.00022191,2]
[311353073,1705067442401,-500.0,0.00022191,2]
[311353074,1705067442410,-500.0,0.00022191,2]
[311353077,1705067442420,-500.0,0.00022191,2]
[311353078,1705067442429,-500.0,0.00022191,2]
[311353081,1705067442439,-534.59720715,0.00022191,2]
[311353082,1705067442449,-504.35283847,0.00022191,2]
[311353085,1705067442459,-500.0,0.00022191,2]
[311353086,1705067442469,-500.0,0.00022191,2]
[311353088,1705067442479,-503.3769544,0.00022191,2]
[311353091,1705067442488,-500.0,0.00022191,2]
[311353093,1705067442501,-500.0,0.00022191,2]
[311353095,1705067442510,-500.0,0.00022191,2]
[311353097,1705067442520,-209.98953882,0.00022191,2]
[311353099,1705067442529,-500.0,0.00022191,2]
[311353101,1705067442538,-500.0,0.00022191,2]
[311353103,1705067442547,-6296.41,0.00022191,2]
[311353105,1705067442555,-502.81795589,0.00022191,2]
[311353107,1705067442564,-500.0,0.00022191,2]
[311353109,1705067442573,-157.5038137,0.00022191,2]
[311353111,1705067442582,-967.93,0.00022191,2]
[311353113,1705067442592,-500.0,0.00022191,2]
[311353115,1705067442601,-500.0,0.00022191,2]
[311353117,1705067442610,-500.0,0.00022191,2]
[311353119,1705067442619,-500.0,0.00022191,2]
[311353121,1705067442628,-500.0,0.00022191,2]
[311353123,1705067442637,-500.0,0.00022191,2]
[311353126,1705067442646,-500.0,0.00022191,2]
[311353128,1705067442656,-500.0,0.00022191,2]
[311353130,1705067442665,-500.0,0.00022191,2]
[311353132,1705067442674,-500.0,0.00022191,2]
[311353134,1705067442683,-500.0,0.00022191,2]
[311353136,1705067442691,-500.0,0.00022191,2]
[311353138,1705067442701,-500.0,0.00022191,2]
[311353141,1705067442710,-500.0,0.00022191,2]
[311353143,1705067442719,-500.0,0.00022191,2]
[311353145,1705067442727,-246.6914067,0.00022191,2]
[311353147,1705067442736,-500.0,0.00022191,2]
[311353149,1705067442746,-647.31,0.00022191,2]
[311353151,1705067442755,-500.0,0.00022191,2]
[311353154,1705067442764,-166.666666,0.00022431,2]
[311353156,1705067442773,-537.31070886,0.00022463,2]
[311353159,1705067442782,-500.0,0.00022463,2]
[311353162,1705067442792,-5877.89,0.00022463,2]
[311353165,1705067442801,-3017.94,0.00022463,2]
[311353168,1705067442810,-500.0,0.00022463,2]
[311353171,1705067442818,-500.0,0.00022463,2]
[311353175,1705067442827,-3678.93,0.00022463,2]
[311353179,1705067442836,-514.22040034,0.00022463,2]
[311353182,1705067442846,-500.0,0.00022463,2]
[311353187,1705067442855,-500.0,0.00022463,2]
[311353192,1705067442864,-502.04559348,0.00022463,2]
[311353195,1705067442872,-1776.17,0.00022463,2]
[311353199,1705067442881,-562.28,0.00022463,2]
[311353202,1705067442890,-918.34,0.00022463,2]
[311353206,1705067442900,-500.0,0.00022464,2]
[311353210,1705067442908,-666.83,0.00022464,2]
[311353214,1705067442917,-500.0,0.00022464,2]
[311353218,1705067442926,-500.0,0.00022464,2]
[311353222,1705067442934,-500.0,0.00022464,2]
[311353225,1705067442943,-500.0,0.00022464,2]
[311353229,1705067442952,-500.0,0.00022464,2]
[311353235,1705067442961,-500.0,0.00022464,2]
[311353237,1705067442971,-500.0,0.00022464,2]
[311353242,1705067442981,-500.0,0.00022464,2]
[311353245,1705067442990,-500.0,0.00022464,2]
[311353250,1705067443001,-500.0,0.00022464,2]
[311353253,1705067443010,-620.27000169,0.00022464,2]
[311353256,1705067443019,-500.0,0.00022464,2]
[311353259,1705067443028,-500.0,0.00022464,2]
[311353263,1705067443037,-500.0,0.00022464,2]
[311353267,1705067443045,-849.38,0.00022464,2]
[311353270,1705067443053,-1027.96,0.00022464,2]
[311353274,1705067443062,-500.0,0.00022464,2]
[311353278,1705067443071,-500.0,0.00022464,2]
[311353282,1705067443081,-509.54407372,0.00022464,2]
[311353286,1705067443091,-500.0,0.00022464,2]
[311353290,1705067443100,-500.0,0.00022464,2]
[311353293,1705067443109,-726.11,0.00022464,2]
[311353297,1705067443118,-500.0,0.00022464,2]
[311353302,1705067443128,-500.0,0.00022464,2]
[311353304,1705067443137,-500.0,0.00022464,2]
[311353306,1705067443146,-500.0,0.00022464,2]
[311353307,1705067443158,-500.0,0.00022464,2]
[311353310,1705067443167,-500.0,0.00022464,2]
[311353312,1705067443177,-200.88833402,0.00022464,2]
[311353313,1705067443186,-500.0,0.00022464,2]
[311353315,1705067443196,-500.0,0.00022464,2]
[311353318,1705067443205,-3384.66,0.00022464,2]
[311353319,1705067443214,-5321.51,0.00022464,2]
[311353321,1705067443223,-500.0,0.00022464,2]
[311353324,1705067443233,-647.16293889,0.00022464,2]
[311353325,1705067443242,-500.0,0.00022464,2]
[311353328,1705067443255,-969.64,0.00022464,2]
[311353330,1705067443264,-500.0,0.00022464,2]
[311353331,1705067443273,-500.0,0.00022464,2]
[311353333,1705067443281,-500.0,0.00022465,2]
[311353335,1705067443291,-500.0,0.00022465,2]
[311353337,1705067443300,-500.0,0.00022465,2]
[311353339,1705067443310,-500.0,0.00022465,2]
[311353341,1705067443319,-500.0,0.00022465,2]
[311353343,1705067443329,-500.0,0.00022465,2]
[311353346,1705067443338,-500.0,0.00022465,2]
[311353348,1705067443348,-500.0,0.00022465,2]
[311353350,1705067443357,-623.8853397,0.00022465,2]
[311353351,1705067443366,-500.0,0.00022465,2]
[311353354,1705067443376,-500.0,0.00022465,2]
[311353355,1705067443385,-505.14388722,0.00022465,2]
[311353357,1705067443395,-500.0,0.00022465,2]
[311353360,1705067443404,-500.0,0.00022465,2]
[311353362,1705067443413,-687.15,0.00022465,2]
[311353364,1705067443428,-500.0,0.00022465,2]
[311353366,1705067443437,-500.0,0.00022465,2]
[311353368,1705067443446,-500.0,0.00022465,2]
[311353370,1705067443455,-500.0,0.00022465,2]
[311353372,1705067443465,-580.19280659,0.00022465,2]
[311353374,1705067443473,-500.0,0.00022465,2]
[311353376,1705067443482,-500.0,0.00022465,2]
[311353378,1705067443493,-500.0,0.00022465,2]
[311353380,1705067443505,-500.0,0.00022465,2]
[311353382,1705067443514,-500.0,0.00022465,2]
[311353384,1705067443523,-503.61309405,0.00022465,2]
[311353386,1705067443532,-500.0,0.00022465,2]
[311353388,1705067443540,-500.0,0.00022465,2]
[311353390,1705067443549,-500.0,0.00022465,2]
[311353392,1705067443558,-500.0,0.00022465,2]
[311353394,1705067443567,-500.0,0.00022465,2]
[311353396,1705067443575,-558.17684392,0.00022465,2]
[311353398,1705067443584,-500.0,0.00022465,2]
[311353400,1705067443593,-500.0,0.00022465,2]
[311353402,1705067443602,-500.0,0.00022465,2]
[311353404,1705067443614,-500.0,0.00022465,2]
[311353406,1705067443623,-500.0,0.00022465,2]
[311353408,1705067443633,-500.0,0.00022465,2]
[311353410,1705067443642,-509.87968915,0.00022465,2]
[311353412,1705067443651,-503.79144164,0.00022465,2]
[311353414,1705067443660,-506.17830102,0.00022465,2]
[311353415,1705067443669,-500.0,0.00022465,2]
[311353416,1705067443678,-500.0,0.00022465,2]
[311353417,1705067443687,-500.0,0.00022465,2]
[311353418,1705067443696,-448.21817105,0.00022465,2]
[311353419,1705067443706,-500.0,0.00022465,2]
[311353420,1705067443715,-500.0,0.00022465,2]
[311353421,1705067443724,-500.0,0.00022465,2]
[311353422,1705067443734,-6296.41,0.00022465,2]
[311353423,1705067443743,-967.93,0.00022465,2]
[311353424,1705067443754,-500.0,0.00022465,2]
[311353425,1705067443763,-500.0,0.00022465,2]
[311353426,1705067443772,-185.62938837,0.00022465,2]
[311353427,1705067443781,-500.0,0.00022465,2]
[311353429,1705067443790,-507.72720742,0.00022465,2]
[311353430,1705067443799,-502.73231423,0.00022465,2]
[311353432,1705067443808,-500.0,0.00022465,2]
[311353434,1705067443817,-500.0,0.00022465,2]
[311353437,1705067443832,-487.68447192,0.00022465,2]
[311353439,1705067443847,-500.0,0.00022465,2]
[311353441,1705067443856,-500.0,0.00022465,2]
[311353443,1705067443865,-500.0,0.00022465,2]
[311353445,1705067443875,-647.31,0.00022465,2]
[311353447,1705067443884,-500.0,0.00022465,2]
[311353449,1705067443894,-500.0,0.00022737,2]
[311353451,1705067443903,-5877.89,0.00022737,2]
[311353453,1705067443913,-3017.94,0.00022737,2]
[311353455,1705067443922,-3678.93,0.00022737,2]
[311353457,1705067443931,-500.0,0.00022737,2]
[311353459,1705067443941,-500.0,0.00022737,2]
[311353461,1705067443950,-1776.17,0.00022737,2]
[311353463,1705067443960,-562.28,0.00022737,2]
[311353465,1705067443969,-918.34,0.00022737,2]
[311353467,1705067443979,-666.83,0.00022738,2]
[311353469,1705067443988,-537.2506109,0.00022738,2]
[311353483,1705067444110,-500.0,0.00022738,2]
[311353486,1705067444129,-501.58628097,0.00022738,2]
[311353487,1705067444139,-500.0,0.00022738,2]
[311353489,1705067444148,-500.0,0.00022738,2]
[311353491,1705067444158,-500.0,0.00022738,2]
[311353493,1705067444167,-500.0,0.00022738,2]
[311353495,1705067444177,-500.0,0.00022738,2]
[311353497,1705067444187,-500.0,0.00022738,2]
[311353500,1705067444198,-603.30534561,0.00022738,2]
[311353501,1705067444207,-500.0,0.00022738,2]
[311353504,1705067444217,-849.38,0.00022738,2]
[311353505,1705067444227,-1027.96,0.00022738,2]
[311353507,1705067444236,-500.0,0.00022738,2]
[311353509,1705067444246,-500.0,0.00022738,2]
[311353511,1705067444256,-500.0,0.00022738,2]
[311353513,1705067444264,-726.11,0.00022738,2]
[311353515,1705067444273,-500.0,0.00022738,2]
[311353516,1705067444282,-500.0,0.00022738,2]
[311353518,1705067444292,-500.0,0.00022738,2]
[311353520,1705067444301,-500.0,0.00022738,2]
[311353522,1705067444310,-500.0,0.00022738,2]
[311353524,1705067444319,-500.0,0.00022738,2]
[311353526,1705067444327,-500.0,0.00022738,2]
[311353528,1705067444336,-3384.66,0.00022738,2]
[311353530,1705067444345,-5321.51,0.00022738,2]
[311353532,1705067444354,-969.64,0.00022738,2]
[311353534,1705067444364,-500.0,0.00022738,2]
[311353536,1705067444373,-500.0,0.00022739,2]
[311353538,1705067444383,-500.0,0.00022739,2]
[311353539,1705067444392,-500.0,0.00022739,2]
[311353541,1705067444402,-500.0,0.00022739,2]
[311353543,1705067444411,-500.0,0.00022739,2]
[311353545,1705067444420,-500.0,0.00022739,2]
[311353547,1705067444430,-500.0,0.00022739,2]
[311353549,1705067444439,-500.0,0.00022739,2]
[311353551,1705067444448,-500.0,0.00022739,2]
[311353553,1705067444458,-500.0,0.00022739,2]
[311353555,1705067444467,-500.0,0.00022739,2]
[311353557,1705067444476,-687.15,0.00022739,2]
[311353559,1705067444485,-500.0,0.00022739,2]
[311353561,1705067444495,-500.0,0.00022739,2]
[311353563,1705067444506,-500.0,0.00022739,2]
[311353565,1705067444515,-506.90032477,0.00022739,2]
[311353567,1705067444524,-500.0,0.00022739,2]
[311353569,1705067444533,-500.0,0.00022739,2]
[311353571,1705067444542,-500.0,0.00022739,2]
[311353572,1705067444551,-500.0,0.00022739,2]
[311353574,1705067444560,-500.0,0.00022739,2]
[311353576,1705067444569,-500.0,0.00022739,2]
[311353578,1705067444578,-500.0,0.00022739,2]
[311353580,1705067444587,-500.0,0.00022739,2]
[311353581,1705067444596,-500.0,0.00022739,2]
[311353583,1705067444605,-500.0,0.00022739,2]
[311353585,1705067444614,-500.0,0.00022739,2]
[311353587,1705067444623,-500.0,0.00022739,2]
[311353589,1705067444633,-636.10524314,0.00022739,2]
[311353591,1705067444642,-528.03023034,0.00022739,2]
[311353593,1705067444651,-500.0,0.00022739,2]
[311353595,1705067444660,-500.0,0.00022739,2]
[311353597,1705067444669,-229.48485561,0.00022739,2]
[311353599,1705067444678,-500.0,0.00022739,2]
[311353601,1705067444687,-503.33954714,0.00022739,2]
[311353603,1705067444697,-500.0,0.00022739,2]
[311353605,1705067444707,-6296.41,0.00022739,2]
[311353606,1705067444717,-967.93,0.00022739,2]
[311353608,1705067444727,-500.0,0.00022739,2]
[311353610,1705067444736,-500.0,0.00022739,2]
[311353612,1705067444747,-500.0,0.00022739,2]
[311353614,1705067444758,-500.0,0.00022739,2]
[311353616,1705067444768,-500.0,0.00022739,2]
[311353618,1705067444781,-500.0,0.00022739,2]
[311353620,1705067444790,-500.0,0.00022739,2]
[311353622,1705067444799,-500.0,0.00022739,2]
[311353624,1705067444808,-500.0,0.00022739,2]
[311353626,1705067444817,-647.31,0.00022739,2]
[311353628,1705067444826,-166.666666,0.00022944,2]
[311353630,1705067444835,-2093.76186828,0.00023,2]
[311353632,1705067444845,-9924.74397112,0.00023,2]
[311353634,1705067444854,-500.0,0.00023011,2]
[311353636,1705067444863,-5877.89,0.00023011,2]
[311353638,1705067444872,-3017.94,0.00023011,2]
[311353639,1705067444882,-3678.93,0.00023011,2]
[311353641,1705067444891,-500.0,0.00023011,2]
[311353643,1705067444901,-500.0,0.00023011,2]
[311353645,1705067444910,-1776.17,0.00023011,2]
[311353647,1705067444919,-562.28,0.00023011,2]
[311353649,1705067444928,-918.34,0.00023011,2]
[311353651,1705067444937,-666.83,0.00023012,2]
[311353653,1705067444947,-500.0,0.00023012,2]
[311353655,1705067444956,-398.43963782,0.00023012,2]
[311353657,1705067444966,-500.0,0.00023012,2]
[311353659,1705067444976,-500.0,0.00023012,2]
[311353661,1705067444985,-504.98952588,0.00023012,2]
[311353663,1705067444994,-500.0,0.00023012,2]
[311353664,1705067445005,-500.0,0.00023012,2]
[311353666,1705067445014,-500.0,0.00023012,2]
[311353668,1705067445023,-849.38,0.00023012,2]
[311353670,1705067445033,-1027.96,0.00023012,2]
[311353672,1705067445042,-500.0,0.00023012,2]
[311353674,1705067445051,-159.85,0.00023012,2]
[311353676,1705067445060,-500.0,0.00023012,2]
[311353678,1705067445069,-726.11,0.00023012,2]
[311353680,1705067445079,-510.48923295,0.00023012,2]
[311353682,1705067445087,-500.0,0.00023012,2]
[311353684,1705067445096,-500.0,0.00023012,2]
[311353686,1705067445106,-500.0,0.00023012,2]
[311353688,1705067445116,-500.0,0.00023012,2]
[311353690,1705067445125,-3384.66,0.00023012,2]
[311353692,1705067445135,-5321.51,0.00023012,2]
[311353694,1705067445144,-969.64,0.00023012,2]
[311353696,1705067445154,-500.0,0.00023012,2]
[311353697,1705067445164,-500.0,0.00023013,2]
[311353699,1705067445173,-506.52956934,0.00023013,2]
[311353701,1705067445183,-500.0,0.00023013,2]
[311353703,1705067445192,-500.0,0.00023013,2]
[311353705,1705067445201,-500.0,0.00023013,2]
[311353707,1705067445211,-500.0,0.00023013,2]
[311353709,1705067445220,-500.0,0.00023013,2]
[311353711,1705067445230,-500.0,0.00023013,2]
[311353713,1705067445239,-500.0,0.00023013,2]
[311353715,1705067445248,-542.82772079,0.00023013,2]
[311353717,1705067445257,-500.0,0.00023013,2]
[311353719,1705067445266,-687.15,0.00023013,2]
[311353721,1705067445275,-500.0,0.00023013,2]
[311353722,1705067445284,-500.0,0.00023013,2]
[311353724,1705067445293,-500.0,0.00023013,2]
[311353726,1705067445303,-500.0,0.00023013,2]
[311353728,1705067445312,-500.0,0.00023013,2]
[311353730,1705067445321,-500.0,0.00023013,2]
[311353732,1705067445330,-500.0,0.00023013,2]
[311353734,1705067445340,-400.96954457,0.00023013,2]
[311353736,1705067445349,-500.0,0.00023013,2]
[311353738,1705067445359,-500.0,0.00023013,2]
[311353740,1705067445368,-500.0,0.00023013,2]
[311353742,1705067445378,-500.0,0.00023013,2]
[311353744,1705067445387,-500.0,0.00023013,2]
[311353746,1705067445396,-500.0,0.00023013,2]
[311353748,1705067445404,-405.65053737,0.00023013,2]
[311353750,1705067445414,-500.0,0.00023013,2]
[311353752,1705067445423,-500.0,0.00023013,2]
[311353754,1705067445432,-500.0,0.00023013,2]
[311353756,1705067445441,-505.55393993,0.00023013,2]
[311353757,1705067445450,-6296.41,0.00023013,2]
[311353759,1705067445459,-967.93,0.00023013,2]
[311353761,1705067445468,-502.04857089,0.00023013,2]
[311353763,1705067445477,-500.0,0.00023013,2]
[311353765,1705067445487,-500.0,0.00023013,2]
[311353767,1705067445497,-500.0,0.00023013,2]
[311353769,1705067445507,-500.0,0.00023013,2]
[311353771,1705067445516,-500.0,0.00023013,2]
[311353773,1705067445525,-500.0,0.00023013,2]
[311353775,1705067445534,-500.0,0.00023013,2]
[311353777,1705067445544,-647.31,0.00023013,2]
[311353779,1705067445553,-500.0,0.00023285,2]
[311353781,1705067445562,-5877.89,0.00023285,2]
[311353782,1705067445571,-3017.94,0.00023285,2]
[311353784,1705067445580,-3678.93,0.00023285,2]
[311353785,1705067445589,-500.0,0.00023285,2]
[311353787,1705067445598,-500.0,0.00023285,2]
[311353789,1705067445608,-1776.17,0.00023285,2]
[311353791,1705067445617,-562.28,0.00023285,2]
[311353793,1705067445626,-918.34,0.00023285,2]
[311353795,1705067445636,-666.83,0.00023286,2]
[311353797,1705067445645,-500.0,0.00023286,2]
[311353799,1705067445654,-500.0,0.00023286,2]
[311353801,1705067445663,-500.0,0.00023286,2]
[311353804,1705067445672,-500.0,0.00023286,2]
[311353806,1705067445682,-638.03039341,0.00023286,2]
[311353809,1705067445690,-500.0,0.00023286,2]
[311353810,1705067445700,-849.38,0.00023286,2]
[311353812,1705067445709,-1027.96,0.00023286,2]
[311353814,1705067445720,-500.0,0.00023286,2]
[311353816,1705067445728,-500.0,0.00023286,2]
[311353819,1705067445737,-726.11,0.00023286,2]
[311353821,1705067445748,-500.0,0.00023286,2]
[311353823,1705067445760,-500.0,0.00023286,2]
[311353824,1705067445769,-500.0,0.00023286,2]
[311353826,1705067445778,-500.0,0.00023286,2]
[311353828,1705067445787,-3384.66,0.00023286,2]
[311353830,1705067445796,-5321.51,0.00023286,2]
[311353833,1705067445805,-969.64,0.00023286,2]
[311353835,1705067445815,-500.0,0.00023286,2]
[311353837,1705067445824,-366.62415653,0.00023287,2]
[311353839,1705067445833,-500.0,0.00023287,2]
[311353841,1705067445842,-500.0,0.00023287,2]
[311353843,1705067445852,-500.0,0.00023287,2]
[311353845,1705067445860,-500.0,0.00023287,2]
[311353847,1705067445870,-500.0,0.00023287,2]
[311353849,1705067445879,-500.0,0.00023287,2]
[311353850,1705067445888,-500.0,0.00023287,2]
[311353852,1705067445899,-500.0,0.00023287,2]
[311353854,1705067445908,-687.15,0.00023287,2]
[311353856,1705067445917,-500.0,0.00023287,2]
[311353859,1705067445926,-500.0,0.00023287,2]
[311353861,1705067445935,-500.0,0.00023287,2]
[311353863,1705067445944,-500.0,0.00023287,2]
[311353865,1705067445953,-500.0,0.00023287,2]
[311353867,1705067445962,-613.74626768,0.00023287,2]
[311353869,1705067445971,-500.0,0.00023287,2]
[311353871,1705067445980,-500.0,0.00023287,2]
[311353873,1705067445988,-500.0,0.00023287,2]
[311353875,1705067446000,-500.0,0.00023287,2]
[311353877,1705067446008,-525.56883023,0.00023287,2]
[311353879,1705067446096,-500.0,0.00023287,2]
[311353880,1705067446106,-500.0,0.00023287,2]
[311353881,1705067446115,-500.0,0.00023287,2]
[311353882,1705067446127,-500.0,0.00023287,2]
[311353883,1705067446137,-500.0,0.00023287,2]
[311353884,1705067446146,-6296.41,0.00023287,2]
[311353885,1705067446156,-967.93,0.00023287,2]
[311353886,1705067446166,-500.0,0.00023287,2]
[311353887,1705067446176,-500.0,0.00023287,2]
[311353888,1705067446185,-500.0,0.00023287,2]
[311353889,1705067446196,-500.0,0.00023287,2]
[311353890,1705067446205,-500.0,0.00023287,2]